bitfinex-derivatives/quotes_SOLF0:USTF0_20251122
["timestamp","ask_amount","ask_price","bid_price","bid_amount"]
[1763823824302,0.05403506,126.83,126.82,0.76]
[1763823826504,0.05403506,126.83,126.81,7.8617]
[1763823826904,0.05403506,126.83,126.82,0.76]
[1763823827312,0.05403506,126.83,126.81,7.8617]
[1763823829308,0.05403506,126.83,126.82,0.76]
[1763823831208,3.05,126.89,126.84,0.76]
[1763823832109,0.06002056,126.88,126.85,0.05194065]
[1763823832305,3.11002056,126.88,126.85,0.05194065]
[1763823837321,3.05,126.85,126.81,9.67181222]
[1763823837818,3.05,126.88,126.82,0.81]
[1763823838014,3.05,126.88,126.82,10.48181222]
[1763823838217,0.05817352,126.86,126.82,10.48181222]
[1763823838416,0.05817352,126.86,126.83,0.81]
[1763823839816,0.05817352,126.86,126.83,10.48181222]
[1763823840215,0.05817352,126.86,126.84,0.81]
[1763823840714,0.05817352,126.86,126.85,0.81]
[1763823841620,3.05,126.9,126.86,0.81]
[1763823841818,3.05,126.9,126.85,10.48181222]
[1763823842023,3.05,126.9,126.85,17.58121222]
[1763823842724,3.10546671,126.89,126.86,0.05913015]
[1763823842925,3.10546671,126.89,126.86,0.86913015]
[1763823844226,3.10546671,126.89,126.86,10.54094237]
[1763823844825,0.05546671,126.89,126.87,0.81]
[1763823845721,3.26546671,126.89,126.86,16.82974237]
[1763823845925,3.26546671,126.89,126.86,7.96793015]
[1763823846127,3.26546671,126.89,126.86,9.73094237]
[1763823846322,3.26546671,126.89,126.86,0.05913015]
[1763823846827,0.05546671,126.89,126.86,0.86913015]
[1763823847217,3.26546671,126.89,126.86,0.86913015]
[1763823847423,3.26546671,126.89,126.86,10.54094237]
[1763823850130,3.26546671,126.89,126.86,17.63984237]
[1763823850427,3.26546671,126.89,126.87,9.67181222]
[1763823850626,3.26546671,126.89,126.86,17.63984237]
[1763823852727,3.21,126.94,126.89,0.81]
[1763823852933,3.21,126.94,126.9,10.60170565]
[1763823853227,3.21,126.94,126.9,0.81]
[1763823853824,3.26547217,126.93,126.91,0.056993]
[1763823854624,3.21,126.91,126.86,9.79170565]
[1763823855527,3.21,126.89,126.87,0.05720419]
[1763823856832,10.3074,126.89,126.87,0.05720419]
[1763823857131,0.04958878,126.9,126.82,21.62983948]
[1763823857132,3.21,126.88,126.82,21.62983948]
[1763823857735,3.21,126.88,126.82,7.1012]
[1763823857934,3.21,126.85,126.82,8.0312]
[1763823859335,0.05987364,126.86,126.83,0.93]
[1763823859536,3.26987364,126.86,126.83,0.93]
[1763823859731,0.05987364,126.86,126.84,0.93]
[1763823860027,3.26987364,126.86,126.84,0.93]
[1763823860222,0.05987364,126.86,126.84,0.93]
[1763823860832,0.05987364,126.86,126.85,0.93]
[1763823861526,3.26987364,126.86,126.83,15.45863948]
[1763823861735,3.26987364,126.86,126.83,0.93]
[1763823863536,3.26987364,126.86,126.82,8.0308]
[1763823863738,3.26987364,126.86,126.83,0.93]
[1763823865535,0.05987364,126.86,126.84,0.93]
[1763823866826,0.05987364,126.86,126.85,0.93]
[1763823867229,3.21,126.89,126.85,0.93]
[1763823867433,3.21,126.89,126.86,0.93]
[1763823868337,3.26671256,126.89,126.86,0.93]
[1763823870041,0.05671256,126.89,126.87,0.93]
[1763823870342,3.26671256,126.89,126.87,0.04969536]
[1763823875045,3.26671256,126.89,126.87,0.97969536]
[1763823875540,3.72736305,126.96,126.88,0.93]
[1763823875732,3.21,126.95,126.88,0.93]
[1763823876543,3.3,126.92,126.9,0.05008183]
[1763823877533,10.3957,126.92,126.9,0.05008183]
[1763823877838,3.13,126.91,126.9,0.05008183]
[1763823879140,0.05017151,126.93,126.9,0.98008183]
[1763823880147,3.18017151,126.93,126.9,0.05008183]
[1763823880850,3.13,126.92,126.9,0.05008183]
[1763823885752,10.2258,126.92,126.9,0.05008183]
[1763823885956,3.13,126.91,126.9,0.05008183]
[1763823886145,3.13,126.91,126.86,14.52863948]
[1763823886554,3.13,126.91,126.84,14.52863948]
[1763823886754,3.13,126.88,126.83,14.52863948]
[1763823887051,3.13,126.88,126.8,0.93]
[1763823887052,3.13,126.86,126.81,9.78685191]
[1763823887256,3.13,126.84,126.82,0.05604263]
[1763823887456,0.05526428,126.85,126.83,10.71685191]
[1763823887650,0.05526428,126.85,126.84,9.78685191]
[1763823889858,0.05526428,126.85,126.84,10.71685191]
[1763823890555,3.18526428,126.85,126.82,13.15911013]
[1763823890755,3.18526428,126.85,126.83,9.78685191]
[1763823892058,3.18526428,126.85,126.82,3.37225822]
[1763823892658,0.05526428,126.85,126.83,0.93]
[1763823892960,0.05526428,126.85,126.84,0.93]
[1763823893957,0.05526428,126.85,126.84,10.71685191]
[1763823894368,3.13,126.89,126.85,0.93]
[1763823894562,3.13,126.89,126.84,13.1030675]
[1763823894764,3.13,126.89,126.85,0.93]
[1763823895360,3.19017602,126.88,126.86,0.05322363]
[1763823895869,0.06017602,126.88,126.86,0.98322363]
[1763823897264,0.06017602,126.88,126.86,10.77007554]
[1763823899569,3.19017602,126.88,126.86,0.05322363]
[1763823899771,0.06017602,126.88,126.86,0.98322363]
[1763823900166,3.19017602,126.88,126.86,0.05322363]
[1763823901182,10.28817602,126.88,126.86,0.05322363]
[1763823901360,3.13,126.87,126.86,0.05322363]
[1763823905059,3.13,126.87,126.83,9.78685191]
[1763823905267,3.13,126.83,126.81,9.78120805]
[1763823905558,3.13,126.81,126.77,3.1]
[1763823905767,3.14,126.8,126.76,2.38621559]
[1763823905967,3.14,126.8,126.77,3.16]
[1763823906160,3.19498291,126.8,126.77,3.21845942]
[1763823906570,0.05498291,126.8,126.77,3.21845942]
[1763823906872,0.05498291,126.8,126.78,3.16]
[1763823907558,3.19498291,126.8,126.77,3.21845942]
[1763823908479,0.05498291,126.8,126.77,3.21845942]
[1763823908773,3.19498291,126.8,126.77,3.21845942]
[1763823909570,3.14,126.79,126.77,0.05845942]
[1763823910269,3.14,126.78,126.77,0.05845942]
[1763823910470,5.52621559,126.78,126.77,0.05845942]
[1763823911471,3.11,126.76,126.71,3.16]
[1763823911673,3.11,126.76,126.67,3.16]
[1763823911674,3.11,126.73,126.67,3.16]
[1763823911869,3.11,126.73,126.67,5.54621559]
[1763823912279,127.1797,126.76,126.64,141.80743948]
[1763823912280,5.49621559,126.76,126.7,3.16]
[1763823912469,0.05708899,126.74,126.72,0.02288554]
[1763823912668,3.16708899,126.74,126.72,0.02288554]
[1763823912881,0.05708899,126.74,126.72,0.02288554]
[1763823913080,3.16708899,126.74,126.72,0.02288554]
[1763823914879,3.11,126.73,126.72,0.02288554]
[1763823915679,5.55330458,126.74,126.72,0.02288554]
[1763823915982,3.16708899,126.74,126.72,0.02288554]
[1763823917378,0.05708899,126.74,126.72,3.18288554]
[1763823918585,16.66,126.77,126.74,3.16]
[1763823918878,3.11,126.77,126.74,3.16]
[1763823919380,7.1026,126.8,126.74,3.16]
[1763823919381,10.2131,126.79,126.74,3.16]
[1763823919589,0.05580803,126.77,126.75,3.21363785]
[1763823922181,0.05580803,126.77,126.75,10.31863785]
[1763823922476,0.05580803,126.77,126.76,3.16]
[1763823924388,16.66,126.81,126.76,3.16]
[1763823924984,16.66,126.81,126.78,3.16]
[1763823925491,16.66,126.81,126.78,3.22036601]
[1763823925492,16.71679185,126.81,126.78,3.22036601]
[1763823927190,0.05679185,126.81,126.78,3.22036601]
[1763823927781,3.19679185,126.81,126.78,0.06036601]
[1763823928085,3.19679185,126.81,126.78,3.22036601]
[1763823929985,0.05679185,126.81,126.78,3.22036601]
[1763823931096,0.05679185,126.81,126.79,3.16]
[1763823931690,3.19679185,126.81,126.78,0.06036601]
[1763823931889,0.05679185,126.81,126.78,3.22036601]
[1763823933295,0.05679185,126.81,126.8,3.16]
[1763823933498,0.05679185,126.81,126.79,10.2627]
[1763823933995,3.19679185,126.81,126.78,0.06036601]
[1763823935895,3.19679185,126.81,126.78,3.36036601]
[1763823936396,3.19679185,126.81,126.78,0.06036601]
[1763823936793,3.19679185,126.81,126.78,3.36036601]
[1763823937195,3.19679185,126.81,126.78,0.06036601]
[1763823937897,10.29869185,126.81,126.78,0.06036601]
[1763823938096,3.16,126.8,126.78,0.06036601]
[1763823944101,10.2624,126.8,126.78,0.06036601]
[1763823944399,3.16,126.79,126.78,0.06036601]
[1763823945792,3.1,126.77,126.73,3.3]
[1763823946297,3.1,126.77,126.74,3.3]
[1763823946903,3.1515765,126.77,126.74,3.35057869]
[1763823947490,0.0515765,126.77,126.74,3.35057869]
[1763823949100,3.1515765,126.77,126.74,3.35057869]
[1763823949299,3.1,126.76,126.74,0.05057869]
[1763823950101,3.1515765,126.77,126.74,3.35057869]
[1763823950806,0.0515765,126.77,126.74,10.45627869]
[1763823951009,0.0515765,126.77,126.75,3.3]
[1763823951899,0.0515765,126.77,126.76,3.3]
[1763823952703,3.1,126.84,126.78,3.3]
[1763823953406,3.16,126.82,126.79,3.3]
[1763823953603,0.05312065,126.82,126.79,3.35236149]
[1763823953910,3.21312065,126.82,126.79,10.45516149]
[1763823955608,3.21312065,126.82,126.79,0.05236149]
[1763823955910,3.21312065,126.82,126.79,3.35236149]
[1763823956801,0.05312065,126.82,126.79,3.35236149]
[1763823957003,3.16,126.85,126.81,3.3]
[1763823957408,19.82,126.86,126.81,3.3]
[1763823957706,19.82,126.86,126.83,10.4005]
[1763823958111,19.88011778,126.86,126.83,10.45988453]
[1763823958610,0.06011778,126.86,126.84,3.3]
[1763823958904,0.06011778,126.86,126.84,10.4]
[1763823959108,0.06011778,126.86,126.85,3.3]
[1763823959606,19.82,126.91,126.85,10.3994]
[1763823959999,19.82,126.91,126.86,3.3]
[1763823960412,3.16,126.9,126.86,10.3989]
[1763823960612,0.06043872,126.89,126.87,3.35684102]
[1763823961412,0.06043872,126.89,126.87,10.45504102]
[1763823961613,0.06043872,126.89,126.88,3.3]
[1763823962618,3.16,126.94,126.88,10.3977]
[1763823963006,3.16,126.94,126.88,7.0977]
[1763823963217,3.16,126.94,126.89,3.3]
[1763823963709,3.2128333,126.93,126.9,0.05616144]
[1763823965112,0.0528333,126.93,126.9,3.35616144]
[1763823965714,3.2028333,126.93,126.9,3.35616144]
[1763823966016,3.2028333,126.93,126.9,0.05616144]
[1763823968104,0.0528333,126.93,126.9,3.22616144]
[1763823968612,0.0528333,126.93,126.92,3.17]
[1763823968815,3.15,126.97,126.92,3.17]
[1763823969315,20.39443054,127.01,126.92,3.17]
[1763823969316,3.15,127.0,126.94,3.17]
[1763823969716,0.05003871,126.98,126.96,0.05295669]
[1763823969919,3.20003871,126.98,126.96,0.05295669]
[1763823970505,3.15,126.96,126.91,3.17]
[1763823970705,3.15,126.96,126.9,7.0965]
[1763823970920,3.15,126.96,126.9,10.2665]
[1763823971221,3.15,126.94,126.88,10.83203054]
[1763823971614,0.0540505,126.92,126.9,0.05892544]
[1763823971818,0.0540505,126.92,126.9,3.22892544]
[1763823972319,0.0540505,126.92,126.9,10.32542544]
[1763823972615,0.0540505,126.92,126.91,3.17]
[1763823975114,0.0540505,126.92,126.9,10.32542544]
[1763823975314,0.0540505,126.92,126.9,6.96335598]
[1763823979228,3.2040505,126.92,126.9,0.05892544]
[1763823981429,10.2998505,126.92,126.9,0.05892544]
[1763823981629,3.15,126.91,126.9,0.05892544]
[1763823982723,3.15,126.91,126.84,6.90443054]
[1763823982724,3.15,126.89,126.84,6.90443054]
[1763823983329,3.15,126.88,126.84,6.90443054]
[1763823983726,0.04993327,126.87,126.85,0.05161307]
[1763823984320,3.19993327,126.87,126.85,0.05161307]
[1763823984921,3.15,126.85,126.8,3.73443054]
[1763823985225,3.15,126.85,126.8,6.90443054]
[1763823985828,3.15,126.85,126.81,3.17]
[1763823986028,0.05314175,126.84,126.82,0.05762699]
[1763823987231,0.05314175,126.84,126.83,3.17]
[1763823987930,3.15,126.88,126.84,3.17]
[1763823988828,0.05522983,126.87,126.85,0.05038996]
[1763823989029,3.20522983,126.87,126.85,0.05038996]
[1763823989224,0.05522983,126.87,126.85,0.05038996]
[1763823990123,0.05522983,126.87,126.85,3.22038996]
[1763823991439,3.15,126.92,126.86,6.90443054]
[1763823991839,3.15,126.92,126.88,3.17]
[1763823992544,0.05762415,126.91,126.89,0.05526643]
[1763823992845,3.20762415,126.91,126.89,0.05526643]
[1763823993338,0.05762415,126.91,126.89,3.22526643]
[1763823994745,0.05762415,126.91,126.89,10.32246643]
[1763823995247,0.05762415,126.91,126.9,3.17]
[1763823997149,19.79,126.95,126.91,3.07]
[1763823998147,0.0524511,126.94,126.92,0.05450545]
[1763823999251,0.0524511,126.94,126.92,3.22450545]
[1763824000154,3.0524511,126.94,126.92,0.05450545]
[1763824000450,0.0524511,126.94,126.92,3.22450545]
[1763824002148,0.0524511,126.94,126.92,10.32000545]
[1763824002553,0.0524511,126.94,126.93,3.17]
[1763824002851,10.0921,126.99,126.95,3.17]
[1763824003045,3.0,126.99,126.95,3.17]
[1763824003945,0.05183979,126.98,126.96,3.22911223]
[1763824006544,0.05183979,126.98,126.96,10.32241223]
[1763824006745,0.05183979,126.98,126.97,3.17]
[1763824007147,113.99793054,127.06,126.98,3.17]
[1763824007342,10.0885,127.05,127.0,3.73443054]
[1763824007555,19.64,127.08,127.01,3.17]
[1763824007854,3.0,127.07,127.01,3.17]
[1763824008253,0.05649107,127.05,127.03,0.05435761]
[1763824009649,0.05649107,127.05,127.03,3.22435761]
[1763824010654,0.05649107,127.05,127.03,10.31355761]
[1763824010846,3.0,127.1,127.04,3.17]
[1763824011243,3.0,127.1,127.05,3.17]
[1763824011553,7.0853,127.11,127.05,3.17]
[1763824011554,19.64,127.13,127.05,3.17]
[1763824011757,3.0,127.12,127.05,3.17]
[1763824011948,0.05661463,127.1,127.08,3.22903351]
[1763824013254,3.05661463,127.1,127.08,0.05903351]
[1763824014148,3.0,127.09,127.08,0.05903351]
[1763824016747,0.05661463,127.1,127.08,0.05903351]
[1763824016954,0.05661463,127.1,127.08,3.22903351]
[1763824017348,0.05661463,127.1,127.08,0.05903351]
[1763824018353,0.05661463,127.1,127.08,3.22903351]
[1763824019951,0.05661463,127.1,127.09,3.17]
[1763824020355,3.0,127.18,127.09,3.17]
[1763824020760,3.0,127.18,127.12,3.17]
[1763824021059,3.0,127.18,127.08,16.62]
[1763824021261,3.0,127.12,127.05,3.17]
[1763824021654,3.05364759,127.1,127.07,0.05126547]
[1763824021857,0.05364759,127.1,127.07,3.22126547]
[1763824023664,10.13944759,127.1,127.07,0.05126547]
[1763824024450,0.05364759,127.1,127.07,3.22126547]
[1763824024964,3.05364759,127.1,127.07,0.05126547]
[1763824026157,10.13944759,127.1,127.07,0.05126547]
[1763824026564,3.15,127.09,127.07,0.05126547]
[1763824028161,0.05364759,127.1,127.07,3.09126547]
[1763824028561,3.20364759,127.1,127.07,0.05126547]
[1763824028861,10.28934759,127.1,127.07,0.05126547]
[1763824030466,3.15,127.09,127.07,0.05126547]
[1763824033877,0.05364759,127.1,127.07,3.09126547]
[1763824034058,2.37829532,127.17,127.09,3.04]
[1763824034369,5.57829532,127.17,127.11,5.41829532]
[1763824034567,22.19829532,127.19,127.14,3.04]
[1763824034766,19.82,127.19,127.14,3.04]
[1763824034960,19.82,127.19,127.14,10.1232]
[1763824035159,3.25538817,127.18,127.15,0.05684216]
[1763824036169,0.05538817,127.18,127.17,3.04]
[1763824036865,3.2,127.24,127.17,3.04]
[1763824037075,3.2,127.24,127.18,3.04]
[1763824037870,0.05449778,127.22,127.2,0.05828285]
[1763824038573,0.05449778,127.22,127.2,3.09828285]
[1763824038774,0.05449778,127.22,127.2,0.05828285]
[1763824039371,0.05449778,127.22,127.2,3.09828285]
[1763824041277,16.6,127.26,127.21,3.04]
[1763824041478,19.8,127.26,127.21,3.04]
[1763824042065,3.2,127.26,127.21,3.04]
[1763824042265,0.05068766,127.25,127.22,3.04]
[1763824042465,0.05068766,127.25,127.22,3.09534283]
[1763824042677,0.05068766,127.25,127.24,3.04]
[1763824043070,3.2,127.29,127.24,3.04]
[1763824043277,10.2736,127.32,127.25,3.04]
[1763824043679,3.2,127.32,127.26,3.04]
[1763824044185,3.2,127.32,127.28,3.09987161]
[1763824044676,16.6,127.34,127.28,3.09987161]
[1763824045777,3.2,127.33,127.28,0.05987161]
[1763824046766,10.2731,127.33,127.28,0.05987161]
[1763824046975,3.2,127.32,127.28,3.09987161]
[1763824047169,16.6,127.34,127.28,3.09987161]
[1763824047370,19.8,127.34,127.28,3.09987161]
[1763824047976,3.2,127.33,127.28,0.05987161]
[1763824048380,3.2,127.31,127.28,0.05987161]
[1763824049175,3.2,127.29,127.28,0.05987161]
[1763824049375,3.2,127.28,127.18,116.73736667]
[1763824049578,10.2765,127.27,127.19,10.1203]
[1763824049883,3.2,127.27,127.2,3.04]
[1763824050184,3.2,127.27,127.16,110.1652]
[1763824050185,113.3431,127.19,127.12,3.04]
[1763824050388,3.25148951,127.17,127.14,0.05751044]
[1763824050588,0.05148951,127.17,127.14,3.09751044]
[1763824050974,16.58,127.21,127.14,10.18061044]
[1763824051181,3.2,127.2,127.12,62.0]
[1763824051387,3.2,127.2,127.12,3.04]
[1763824051578,3.2,127.19,127.12,3.04]
[1763824051779,3.2,127.18,127.12,3.04]
[1763824051983,3.2,127.18,127.14,0.0572876]
[1763824052375,3.2,127.16,127.14,0.0572876]
[1763824052978,10.2826,127.16,127.14,0.0572876]
[1763824053171,3.2,127.15,127.14,0.0572876]
[1763824053370,10.2833,127.15,127.08,3.04]
[1763824053778,3.2,127.13,127.05,3.04]
[1763824053978,19.8,127.13,127.05,3.04]
[1763824054583,3.25952951,127.1,127.08,0.05572117]
[1763824055185,113.48072951,127.1,127.08,0.05572117]
[1763824055486,19.8,127.09,127.02,3.04]
[1763824056386,0.05942406,127.07,127.04,3.31307218]
[1763824058492,3.23942406,127.07,127.04,0.05307218]
[1763824059078,113.48822406,127.07,127.04,0.05307218]
[1763824059277,3.18,127.03,126.94,3.15]
[1763824059474,19.78,127.02,126.94,3.15]
[1763824059682,3.18,127.01,126.94,3.15]
[1763824059989,3.18,126.99,126.91,3.15]
[1763824060373,3.23053546,126.96,126.94,0.05597043]
[1763824060781,3.23053546,126.96,126.94,3.20597043]
[1763824060782,0.05053546,126.96,126.94,3.20597043]
[1763824060983,19.8,127.02,126.95,3.15]
[1763824061187,3.18,127.01,126.95,3.15]
[1763824061784,3.18,127.01,126.96,110.3401]
[1763824061982,0.05714295,127.0,126.97,3.20712351]
[1763824065196,0.05714295,127.0,126.98,3.15]
[1763824065690,0.05714295,127.0,126.99,3.15]
[1763824066289,3.18,127.05,126.99,113.4616]
[1763824066480,16.62,127.06,126.99,113.4616]
[1763824066481,19.8,127.06,127.01,3.15]
[1763824066792,3.18,127.05,127.01,3.15]
[1763824067289,0.05974691,127.04,127.02,0.0508678]
[1763824067888,0.05974691,127.04,127.02,3.2008678]
[1763824070083,0.05974691,127.04,127.03,3.15]
[1763824070888,0.05974691,127.04,127.02,10.2905678]
[1763824072289,0.05974691,127.04,127.03,3.15]
[1763824078389,3.23974691,127.04,127.02,0.0508678]
[1763824081597,3.18,127.03,126.96,3.15]
[1763824081796,10.27,127.03,126.96,10.2432]
[1763824082604,3.23963088,127.01,126.98,0.05205508]
[1763824085603,3.2,127.07,126.98,113.52415508]
[1763824085804,3.2,127.07,127.01,3.27]
[1763824086810,0.05103275,127.05,127.03,0.05121949]
[1763824087208,3.31103275,127.05,126.97,3.27]
[1763824087404,3.26,127.03,126.94,113.622]
[1763824087603,3.26,127.03,126.95,3.27]
[1763824088013,10.3502,127.02,126.95,10.3636]
[1763824088312,0.0526705,127.0,126.97,0.05322259]
[1763824088606,0.0526705,127.0,126.93,120.72033019]
[1763824088607,3.26,126.97,126.89,3.27]
[1763824089004,3.26,126.95,126.89,3.27]
[1763824089204,3.26,126.95,126.86,3.27]
[1763824089405,3.26,126.95,126.88,3.27]
[1763824089601,0.05086177,126.93,126.9,3.32314686]
[1763824090407,0.05086177,126.93,126.91,3.27]
[1763824091507,0.05086177,126.93,126.91,10.3657]
[1763824091814,3.26,126.98,126.92,3.27]
[1763824092205,3.26,126.98,126.9,110.3912]
[1763824092206,3.26,126.98,126.93,3.27]
[1763824092704,3.31504039,126.97,126.94,0.05582039]
[1763824095407,0.05504039,126.97,126.94,3.32582039]
[1763824096612,3.31504039,126.97,126.94,0.05582039]
[1763824096817,3.26,126.96,126.87,113.6839]
[1763824097209,3.26,126.95,126.87,10.3682]
[1763824097416,3.26,126.93,126.87,3.27]
[1763824097811,3.26,126.93,126.85,16.62]
[1763824097812,3.26,126.9,126.89,0.05896062]
[1763824098014,3.26,126.9,126.84,3.27]
[1763824098606,3.26,126.89,126.82,1.36875848]
[1763824098811,3.26,126.89,126.82,4.63875848]
[1763824099006,3.26,126.89,126.82,11.73985848]
[1763824099321,0.05442533,126.87,126.84,3.32734495]
[1763824099717,3.26,126.95,126.87,3.27]
[1763824100416,10.3541,126.95,126.87,3.27]
[1763824100620,3.31780029,126.92,126.9,0.05621887]
[1763824100815,0.05780029,126.92,126.9,3.32621887]
[1763824101333,7.0926,126.98,126.92,7.0956]
[1763824101625,3.26,126.95,126.87,3.27]
[1763824102314,0.05516601,126.92,126.87,3.27]
[1763824102522,0.05516601,126.92,126.9,0.05584776]
[1763824102911,0.05516601,126.92,126.9,3.32584776]
[1763824104214,0.05516601,126.92,126.91,3.27]
[1763824105422,0.05516601,126.92,126.9,7.15244776]
[1763824105632,0.05516601,126.92,126.91,3.27]
[1763824107532,0.05516601,126.92,126.9,10.42244776]
[1763824107724,0.05516601,126.92,126.9,3.32584776]
[1763824108231,0.05516601,126.92,126.9,0.05584776]
[1763824109717,3.31516601,126.92,126.9,0.05584776]
[1763824110327,0.05516601,126.92,126.91,3.27]
[1763824110629,0.05516601,126.92,126.9,0.05584776]
[1763824110831,0.05516601,126.92,126.9,3.32584776]
[1763824111431,3.31516601,126.92,126.9,0.05584776]
[1763824113633,3.26,126.9,126.85,7.0992]
[1763824113823,3.26,126.9,126.85,10.3692]
[1763824114224,3.26,126.9,126.86,3.27]
[1763824114625,0.05391475,126.89,126.87,0.05308776]
[1763824115829,3.31391475,126.89,126.87,0.05308776]
[1763824117228,3.09,126.88,126.87,0.05308776]
[1763824117937,0.05391475,126.89,126.87,0.05308776]
[1763824118135,3.14391475,126.89,126.87,0.05308776]
[1763824119029,3.14391475,126.89,126.8,3.32]
[1763824119232,3.09,126.88,126.8,3.32]
[1763824120034,120.71653019,126.95,126.84,3.32]
[1763824120236,3.09,126.93,126.85,3.32]
[1763824121144,0.05474271,126.9,126.88,3.37818091]
[1763824121628,0.05474271,126.9,126.88,10.47588091]
[1763824121828,0.05474271,126.9,126.88,3.37818091]
[1763824123642,0.05474271,126.9,126.88,0.05818091]
[1763824123643,3.14474271,126.9,126.88,0.05818091]
[1763824126731,0.05474271,126.9,126.88,0.05818091]
[1763824126938,0.05474271,126.9,126.88,3.37818091]
[1763824128344,0.05474271,126.9,126.88,10.47568091]
[1763824128743,3.14474271,126.9,126.88,0.05818091]
[1763824130049,10.24164271,126.9,126.88,0.05818091]
[1763824131546,3.09,126.89,126.88,0.05818091]
[1763824133844,7.20701389,126.97,126.88,4.95818091]
[1763824134047,5.89862635,126.96,126.89,3.32]
[1763824134242,132.93196217,126.95,126.86,3.32]
[1763824134546,5.89855946,126.94,126.86,3.32]
[1763824134739,127.0339,126.95,126.86,3.32]
[1763824134945,7.14537798,126.92,126.89,0.05874346]
[1763824135943,10.23537798,126.92,126.89,0.05874346]
[1763824138251,0.04967798,126.92,126.89,3.37874346]
[1763824139235,0.04967798,126.92,126.9,3.32]
[1763824140547,0.04967798,126.92,126.89,13.11439151]
[1763824140736,3.13967798,126.92,126.89,0.05874346]
[1763824141443,3.09,126.91,126.89,0.05874346]
[1763824143044,3.09,126.9,126.89,0.05874346]
[1763824143237,3.09,126.9,126.86,9.73564805]
[1763824143443,3.09,126.89,126.84,9.73564805]
[1763824144240,0.05173477,126.88,126.84,9.73564805]
[1763824144451,3.14173477,126.88,126.85,0.05267949]
[1763824145252,10.23973477,126.88,126.85,0.05267949]
[1763824147258,3.02,126.87,126.85,0.05267949]
[1763824148757,0.05173477,126.88,126.85,3.21267949]
[1763824148953,0.05173477,126.88,126.85,12.94832754]
[1763824149149,0.05173477,126.88,126.86,3.16]
[1763824149350,0.05173477,126.88,126.87,3.16]
[1763824149550,0.05173477,126.88,126.87,12.89564805]
[1763824151155,16.66,126.91,126.88,10.2579]
[1763824151360,16.66,126.91,126.88,19.99354805]
[1763824152160,16.71841645,126.91,126.88,20.04836035]
[1763824154959,16.71841645,126.91,126.88,12.95046035]
[1763824156458,19.73841645,126.91,126.88,9.79046035]
[1763824156662,3.02,126.9,126.88,0.0548123]
[1763824158061,3.02,126.89,126.88,0.0548123]
[1763824158563,3.02,126.89,126.85,9.73564805]
[1763824158757,10.119,126.86,126.84,9.73564805]
[1763824159365,10.1196,126.85,126.83,9.73564805]
[1763824159657,10.17233098,126.85,126.83,9.78797818]
[1763824160052,0.05273098,126.85,126.84,3.16]
[1763824160254,0.05273098,126.85,126.84,9.73564805]
[1763824161063,0.05273098,126.85,126.83,9.78797818]
[1763824161864,0.05273098,126.85,126.83,12.94797818]
[1763824163575,0.05273098,126.85,126.83,3.21233013]
[1763824164567,0.05273098,126.85,126.83,12.94797818]
[1763824164978,0.05273098,126.85,126.83,3.21233013]
[1763824165273,3.02,126.93,126.84,3.16]
[1763824165461,8.9217396,126.92,126.84,3.16]
[1763824165659,3.02,126.91,126.84,3.16]
[1763824165865,3.02,126.9,126.84,3.16]
[1763824166067,3.02,126.89,126.81,3.16]
[1763824166266,0.05912547,126.86,126.84,0.05409665]
[1763824166670,3.02,126.85,126.84,0.05409665]
[1763824166867,3.02,126.84,126.78,3.16]
[1763824167264,3.02,126.82,126.78,3.16]
[1763824167467,3.02,126.82,126.75,3.16]
[1763824167776,0.05287808,126.8,126.78,3.16]
[1763824168773,0.00287808,126.8,126.78,3.16]
[1763824168976,3.02,126.88,126.8,3.16]
[1763824169173,3.02,126.88,126.81,3.16]
[1763824169477,26.7782,126.88,126.84,3.16]
[1763824169866,0.06020173,126.87,126.85,0.05635066]
[1763824170063,3.08020173,126.87,126.85,0.05635066]
[1763824170978,3.08020173,126.87,126.85,3.21635066]